bitfinex/quotes_SOLUSD_20251208
["timestamp","ask_amount","ask_price","bid_price","bid_amount"]
[1765155088577,7.57977715,131.93,131.89,4.19571968]
[1765155088755,7.57943662,131.94,131.9,3.51571968]
[1765155088955,7.57943662,131.94,131.9,4.19571968]
[1765155089171,7.57943662,131.94,131.91,0.68]
[1765155094371,7.57943662,131.94,131.88,97.46549123]
[1765155094372,3.51571968,131.93,131.88,62.88]
[1765155094562,8.38,131.92,131.88,0.68]
[1765155095381,11.89571968,131.92,131.88,0.68]
[1765155095792,7.58092638,131.91,131.88,0.68]
[1765155096164,15.96048278,131.92,131.88,8.26248574]
[1765155096362,15.96043662,131.92,131.88,8.26248574]
[1765155096685,15.96043662,131.92,131.89,0.68]
[1765155097077,8.38,131.92,131.89,0.68]
[1765155097774,15.96041592,131.92,131.89,0.68]
[1765155098678,7.57999658,131.93,131.89,8.26204119]
[1765155098875,15.95999658,131.93,131.89,8.26204119]
[1765155099191,15.95999658,131.93,131.9,0.68]
[1765155104479,15.95999658,131.93,131.89,0.68]
[1765155104682,3.51571968,131.92,131.88,0.68]
[1765155105698,16.308864,131.88,131.86,75.1]
[1765155106002,3.51571968,131.87,131.86,75.1]
[1765155106171,11.09894558,131.87,131.86,75.1]
[1765155106986,7.5832259,131.87,131.86,75.1]
[1765155107187,11.09894558,131.87,131.86,75.1]
[1765155114707,7.5832259,131.87,131.86,75.1]
[1765155116410,11.09894558,131.87,131.86,75.1]
[1765155116722,8.38,131.88,131.86,75.8]
[1765155116723,15.96288797,131.88,131.86,75.8]
[1765155117512,15.96288797,131.88,131.87,0.7]
[1765155117513,7.58288797,131.88,131.87,0.7]
[1765155117805,15.96215111,131.89,131.87,0.7]
[1765155121282,25.11880892,131.87,131.86,75.1]
[1765155121491,37.0145286,131.87,131.83,0.1]
[1765155121715,12.3256646,131.84,131.83,0.1]
[1765155121918,20.7056646,131.84,131.83,1e-08]
[1765155123017,37.0145286,131.84,131.83,1e-08]
[1765155123331,35.78953513,131.84,131.83,1e-08]
[1765155127916,27.40953513,131.84,131.83,1e-08]
[1765155128215,35.78953513,131.84,131.83,1e-08]
[1765155129826,3.51571968,131.87,131.83,0.70000001]
[1765155130034,11.89571968,131.87,131.83,0.70000001]
[1765155131103,3.51571968,131.86,131.83,0.70000001]
[1765155131642,11.89571968,131.87,131.83,0.70000001]
[1765155131930,3.51571968,131.86,131.83,0.70000001]
[1765155132310,34.92167862,131.87,131.83,0.70000001]
[1765155132493,19.47933354,131.87,131.83,0.70000001]
[1765155132698,8.38,131.86,131.83,8.28530227]
[1765155133328,8.38,131.86,131.84,0.7]
[1765155136531,8.38,131.86,131.84,8.2849426]
[1765155137032,8.38,131.86,131.85,0.7]
[1765155141730,7.58325353,131.87,131.85,0.7]
[1765155141916,8.38,131.89,131.85,11.80008404]
[1765155142120,8.38,131.89,131.86,0.66]
[1765155142431,8.38,131.92,131.88,3.51571968]
[1765155142726,8.38,131.92,131.88,2.24819769]
[1765155142934,8.38,131.92,131.89,0.66]
[1765155144730,23.88864115,131.93,131.89,8.24190398]
[1765155144731,7.57977715,131.93,131.89,8.24190398]
[1765155144938,15.95977715,131.93,131.89,8.24190398]
[1765155145120,7.57941019,131.94,131.9,0.66]
[1765155145323,8.38,131.95,131.9,2.90819769]
[1765155145838,8.38,131.95,131.91,0.66]
[1765155146216,10.62819769,131.95,131.91,0.66]
[1765155146913,18.63734527,131.94,131.91,0.66]
[1765155147216,37.58535193,131.94,131.9,0.66]
[1765155147425,37.58535193,131.94,131.89,8.24184551]
[1765155147920,37.58535193,131.94,131.9,0.66]
[1765155151846,7.58035172,131.92,131.9,0.66]
[1765155152154,15.96000403,131.93,131.9,0.66]
[1765155154444,2.24819769,131.92,131.89,0.66]
[1765155154644,18.55706169,131.9,131.85,0.66]
[1765155154862,2.24819769,131.88,131.85,0.66]
[1765155155068,8.38,131.87,131.85,0.66]
[1765155161263,8.38,131.87,131.85,8.2443365]
[1765155161844,8.38,131.87,131.86,0.66]
[1765155162185,18.21050529,131.89,131.86,0.66]
[1765155163083,7.5815397,131.9,131.86,8.24377223]
[1765155163580,7.5815397,131.9,131.87,0.66]
[1765155164773,7.5815397,131.9,131.87,8.24321408]
[1765155165277,7.5815397,131.9,131.88,0.66]
[1765155165671,15.9611217,131.91,131.88,0.66]
[1765155166161,18.20931939,131.91,131.88,0.66]
[1765155166466,15.9611217,131.91,131.88,0.66]
[1765155174197,2.24819769,131.89,131.85,62.88]
[1765155174476,34.91343767,131.91,131.81,148.11121487]
[1765155174477,2.24819769,131.86,131.83,0.68000001]
[1765155174680,10.62819769,131.86,131.83,0.68000001]
[1765155176384,18.21257354,131.86,131.83,0.68000001]
[1765155180585,7.58337748,131.87,131.83,0.68000001]
[1765155181379,9.83157517,131.87,131.83,0.68000001]
[1765155181769,7.58337748,131.87,131.83,0.68000001]
[1765155182675,7.58337748,131.87,131.83,8.26549319]
[1765155182878,7.58337748,131.87,131.84,0.67]
[1765155183379,8.38,131.9,131.85,2.24819769]
[1765155183783,8.38,131.9,131.86,0.67]
[1765155184487,11.05814261,131.91,131.86,0.67]
[1765155184664,2.24819769,131.89,131.86,0.67]
[1765155185883,10.62819769,131.9,131.86,0.67]
[1765155186489,7.58207597,131.89,131.86,0.67]
[1765155187665,16.308864,131.91,131.86,10.50187389]
[1765155187865,8.38,131.9,131.86,8.2536762]
[1765155188076,8.38,131.9,131.87,0.67]
[1765155191492,8.38,131.9,131.87,8.25320192]
[1765155191893,8.38,131.9,131.88,0.67]
[1765155192994,7.5805598,131.92,131.88,0.67]
[1765155193180,8.38,131.91,131.88,0.67]
[1765155193682,8.38,131.91,131.88,8.2526316]
[1765155193984,8.38,131.91,131.89,0.67]
[1765155198494,23.88885417,131.93,131.89,8.25207381]
[1765155198682,32.26885417,131.93,131.89,8.25207381]
[1765155198878,2.24819769,131.92,131.89,0.67]
[1765155199397,53.46649474,131.93,131.89,0.67]
[1765155199780,2.24819769,131.9,131.85,0.67]
[1765155200075,2.24819769,131.9,131.83,2.2481977]
[1765155200076,2.24819769,131.87,131.83,0.67000001]
[1765155200275,10.62819769,131.87,131.84,0.67]
[1765155200685,18.21185455,131.87,131.84,0.67]
[1765155204706,19.48032215,131.87,131.84,0.67]
[1765155206083,3.51666529,131.86,131.83,1e-08]
[1765155206291,3.51666529,131.86,131.83,0.66000001]
[1765155207998,19.48104147,131.85,131.83,1e-08]
[1765155208382,19.48104147,131.85,131.83,0.66000001]
[1765155209796,3.51666529,131.87,131.83,0.66000001]
[1765155209983,8.38,131.86,131.83,0.66000001]
[1765155210601,8.38,131.86,131.83,8.2455138]
[1765155211181,8.38,131.86,131.84,0.66]
[1765155218783,15.96414946,131.86,131.84,0.66]
[1765155218990,3.51666529,131.85,131.83,1e-08]
[1765155219211,11.89666529,131.84,131.83,1e-08]
[1765155219410,20.70661021,131.84,131.83,1e-08]
[1765155220297,28.29156166,131.84,131.83,1e-08]
[1765155220888,19.91156166,131.84,131.83,1e-08]
[1765155221084,28.29156166,131.84,131.83,1e-08]
[1765155222515,19.48161674,131.84,131.83,1e-08]
[1765155225416,15.96495145,131.84,131.83,1e-08]
[1765155225717,19.48161674,131.84,131.83,1e-08]
[1765155230038,27.40992957,131.85,131.83,0.66000001]
[1765155230217,8.38,131.84,131.83,0.66000001]
[1765155231930,7.58402096,131.86,131.83,8.24549318]
[1765155232236,8.38,131.86,131.83,8.24549318]
[1765155232414,8.38,131.86,131.84,0.72]
[1765155233733,7.58370394,131.87,131.84,0.72]
[1765155233924,19.48036923,131.87,131.84,0.72]
[1765155235003,15.96370394,131.87,131.84,8.30490011]
[1765155235416,8.38,131.87,131.85,0.72]
[1765155238229,15.96327403,131.87,131.85,0.72]
[1765155238428,11.09993932,131.87,131.85,0.72]
[1765155240630,11.89666529,131.87,131.85,0.72]
[1765155240832,3.51666529,131.87,131.85,0.72]
[1765155241007,15.96288951,131.88,131.85,0.72]
[1765155241211,3.51666529,131.87,131.85,0.72]
[1765155241418,11.89666529,131.86,131.83,62.20000001]
[1765155241617,3.51666529,131.84,131.83,62.86000001]
[1765155241838,11.89666529,131.84,131.83,0.66000001]
[1765155243237,8.38,131.84,131.83,0.66000001]
[1765155244136,19.48161674,131.84,131.83,1e-08]
[1765155244840,19.48161674,131.84,131.83,0.66000001]
[1765155246118,15.96495145,131.84,131.83,0.66000001]
[1765155247635,19.48161674,131.84,131.83,0.66000001]
[1765155249538,8.38,131.84,131.83,0.66000001]
[1765155250041,15.96495145,131.84,131.83,0.66000001]
[1765155253240,16.308864,131.86,131.83,0.66000001]
[1765155253424,7.58092638,131.91,131.85,3.51666529]
[1765155253620,11.09759167,131.91,131.85,11.10068441]
[1765155253933,3.51666529,131.89,131.86,0.66]
[1765155254842,8.38,131.9,131.86,0.66]
[1765155255632,8.38,131.9,131.87,7.5832259]
[1765155256018,8.38,131.9,131.88,0.66]
[1765155256225,15.96162206,131.9,131.87,0.66]
[1765155259841,8.38,131.9,131.87,8.24320285]
[1765155260335,8.38,131.9,131.88,0.66]
[1765155261745,8.38,131.9,131.88,8.24248817]
[1765155262046,8.38,131.9,131.89,0.72]
[1765155263843,23.88942384,131.92,131.89,0.72]
[1765155264449,8.38,131.91,131.89,0.72]
[1765155264763,3.51666529,131.9,131.86,0.72]
[1765155265042,8.38,131.89,131.86,0.72]
[1765155266249,15.96236477,131.89,131.86,0.72]
[1765155266549,8.38,131.89,131.86,8.30375249]
[1765155267044,8.38,131.89,131.87,0.72]
[1765155268836,7.58168373,131.9,131.87,0.72]
[1765155269037,8.38,131.89,131.87,0.72]
[1765155269326,7.58168373,131.9,131.87,0.72]
[1765155269527,15.96168373,131.9,131.87,0.72]
[1765155269848,7.58116023,131.91,131.87,10.55259485]
[1765155270054,16.308864,131.92,131.87,10.55259485]
[1765155270055,23.88926835,131.92,131.87,72.75259485]
[1765155270261,8.38,131.91,131.88,2.96945816]
[1765155270769,8.38,131.91,131.89,0.72]
[1765155273766,7.57977715,131.93,131.89,8.30188036]
[1765155274083,15.95977715,131.93,131.89,10.55133852]
[1765155274241,15.95977715,131.93,131.9,0.72]
[1765155274646,8.38,131.93,131.9,0.72]
[1765155275860,8.38,131.93,131.9,8.30126544]
[1765155276262,8.38,131.93,131.91,0.72]
[1765155277362,16.308864,131.94,131.91,8.30085048]
[1765155277551,8.38,131.94,131.91,8.30085048]
[1765155277751,8.38,131.94,131.92,0.72]
[1765155279360,8.38,131.94,131.92,8.30033885]
[1765155279741,8.38,131.94,131.93,0.72]
[1765155279937,8.38,131.94,131.91,8.30071959]
[1765155280361,8.38,131.94,131.92,0.72]
[1765155280562,15.95926795,131.94,131.91,0.72]
[1765155280961,18.20872611,131.94,131.91,0.72]
[1765155282168,15.95926795,131.94,131.91,0.72]
[1765155286654,15.93926795,131.94,131.91,8.30091831]
[1765155287365,15.93926795,131.94,131.92,0.72]
[1765155287566,8.36,131.94,131.92,0.72]
[1765155290165,37.13674194,131.94,131.88,0.72]
[1765155290484,18.55832216,131.93,131.89,0.72]
[1765155290644,8.36,131.92,131.89,0.72]
[1765155292370,15.94043108,131.92,131.89,0.72]
[1765155296884,15.93986176,131.93,131.9,2.24945816]
[1765155297268,8.36,131.93,131.91,0.7]
[1765155297784,8.36,131.93,131.9,0.7]
[1765155298084,2.24945816,131.92,131.89,62.2]
[1765155298262,8.36,131.91,131.89,62.2]
[1765155298462,10.60945816,131.91,131.87,0.7]
[1765155298663,10.60945816,131.91,131.86,0.7]
[1765155298882,9.83095929,131.9,131.86,0.7]
[1765155299081,8.36,131.89,131.86,0.7]
[1765155300288,15.94226963,131.89,131.86,0.7]
[1765155300987,2.24945816,131.88,131.84,0.7]
[1765155301187,10.60945816,131.87,131.83,0.70000001]
[1765155301376,2.24945816,131.86,131.83,0.70000001]
[1765155301885,8.36,131.87,131.83,0.70000001]
[1765155302187,2.24945816,131.86,131.83,0.70000001]
[1765155302389,7.58437618,131.85,131.83,0.70000001]
[1765155303279,9.83319573,131.87,131.83,0.70000001]
[1765155303498,8.36,131.86,131.83,0.70000001]
[1765155304851,8.36,131.86,131.83,8.28542763]
[1765155305000,15.94385871,131.86,131.83,1e-08]
[1765155305208,18.19331687,131.86,131.83,0.70000001]
[1765155305515,15.94385871,131.86,131.83,0.70000001]
[1765155308604,2.24945816,131.85,131.83,1e-08]
[1765155310706,7.58495145,131.84,131.83,1e-08]
[1765155312483,46.32571907,131.88,131.83,0.70000001]
[1765155312689,8.38,131.87,131.83,0.70000001]
[1765155313084,34.92129066,131.87,131.83,0.70000001]
[1765155313615,2.24945816,131.85,131.83,1e-08]
[1765155313913,10.62945816,131.84,131.83,1e-08]
[1765155314508,18.21440961,131.84,131.83,1e-08]
[1765155315110,15.96495145,131.84,131.83,1e-08]
[1765155316515,18.21440961,131.84,131.83,1e-08]
[1765155317492,27.02435453,131.84,131.83,1e-08]
[1765155320422,15.96495145,131.84,131.83,0.70000001]
[1765155320716,15.96495145,131.84,131.83,1e-08]
[1765155321089,15.96495145,131.84,131.83,0.66000001]
[1765155322515,15.96495145,131.84,131.83,1e-08]
[1765155323713,15.96495145,131.84,131.83,0.66000001]
[1765155324800,18.21440961,131.84,131.83,1e-08]
[1765155324999,15.96495145,131.84,131.83,1e-08]
[1765155326012,7.58495145,131.84,131.83,1e-08]
[1765155326221,15.96495145,131.84,131.83,1e-08]
[1765155326434,18.21440961,131.84,131.83,1e-08]
[1765155327517,27.02435453,131.84,131.83,1e-08]
[1765155328006,15.96495145,131.84,131.83,0.66000001]
[1765155329020,15.96495145,131.84,131.83,1e-08]
[1765155334210,15.96495145,131.84,131.83,0.66000001]
[1765155337527,15.96495145,131.84,131.83,1e-08]
[1765155337826,15.96495145,131.84,131.83,0.66000001]
[1765155345329,19.48264942,131.84,131.83,1e-08]
[1765155345528,19.48264942,131.84,131.83,0.66000001]
[1765155347243,7.58495145,131.84,131.83,0.66000001]
[1765155347448,15.96495145,131.84,131.83,0.66000001]
[1765155348358,16.308864,131.87,131.83,11.76276968]
[1765155348643,8.38,131.91,131.86,3.51769797]
[1765155348834,11.89769797,131.91,131.85,3.51769797]
[1765155349039,28.20656197,131.91,131.85,3.51769797]
[1765155349238,28.20656197,131.91,131.86,0.66]
[1765155349437,8.38,131.9,131.86,0.66]
[1765155349638,15.96203901,131.9,131.86,0.66]
[1765155349946,16.308864,131.87,131.83,0.66000001]
[1765155350152,3.51769797,131.84,131.83,1e-08]
[1765155350452,11.89769797,131.84,131.83,1e-08]
[1765155352525,19.48264942,131.84,131.83,1e-08]
[1765155353243,19.48264942,131.84,131.83,0.70000001]
[1765155355630,19.48264942,131.84,131.83,1e-08]
[1765155359534,19.48264942,131.84,131.83,0.71000001]
[1765155359851,19.48264942,131.84,131.83,1e-08]
[1765155360025,28.29259434,131.84,131.83,1e-08]
[1765155360232,44.60145834,131.84,131.83,1e-08]
[1765155360651,28.29259434,131.84,131.83,1e-08]
[1765155360855,16.308864,131.81,131.74,0.1]
[1765155361030,3.51769797,131.75,131.74,0.1]
[1765155361234,8.38,131.78,131.75,0.71]
[1765155362456,8.38,131.78,131.75,8.30011246]
[1765155362850,8.38,131.78,131.76,0.71]
[1765155363043,15.96866042,131.78,131.76,0.71]
[1765155364054,8.38,131.79,131.76,0.71]
[1765155364253,8.38,131.8,131.76,0.71]
[1765155364633,11.89769797,131.8,131.76,0.71]
[1765155364973,7.58782912,131.79,131.76,0.71]
[1765155366054,15.9674794,131.8,131.76,0.71]
[1765155368062,15.9674794,131.8,131.76,8.29948008]
[1765155368358,15.9674794,131.8,131.77,0.71]
[1765155368655,7.58688292,131.81,131.77,0.71]
[1765155368838,8.38,131.81,131.77,4.22769797]
[1765155369033,8.38,131.81,131.77,11.81644192]
[1765155369251,8.38,131.81,131.78,0.71]
[1765155369663,15.96687753,131.81,131.78,0.71]
[1765155370549,3.51769797,131.8,131.76,0.71]
[1765155370856,3.51769797,131.8,131.77,0.71]
[1765155371038,7.58782912,131.79,131.77,0.71]
[1765155371233,11.89769797,131.78,131.74,0.1]
[1765155371437,3.51769797,131.76,131.74,0.1]
[1765155371657,8.38,131.75,131.74,0.1]
[1765155372041,11.89769797,131.75,131.74,0.1]
[1765155372860,8.38,131.75,131.74,0.81]
[1765155373061,15.97013282,131.75,131.74,0.1]
[1765155377155,19.48783079,131.75,131.74,0.1]
[1765155377355,28.29777571,131.75,131.74,0.1]
[1765155384466,15.97013282,131.75,131.74,0.79]
[1765155386447,3.51769797,131.78,131.74,0.79]
[1765155386651,8.38,131.77,131.74,0.79]
[1765155387176,46.38296344,131.8,131.74,8.38058093]
[1765155387354,8.38,131.79,131.74,8.38058093]
[1765155387549,8.38,131.79,131.75,0.69]
[1765155388373,46.38296344,131.8,131.75,0.69]
[1765155388557,8.38,131.79,131.75,11.79775292]
[1765155388756,8.38,131.79,131.75,10.53275061]
[1765155389074,8.38,131.79,131.76,0.69]
[1765155389754,15.96838823,131.79,131.76,0.69]
[1765155390578,21.21705738,131.83,131.76,10.53224919]
[1765155390766,32.27496626,131.82,131.76,10.53224919]
[1765155391076,8.38,131.82,131.77,19.25155966]
[1765155391468,8.38,131.82,131.78,0.69]
[1765155391981,15.96649145,131.82,131.78,0.69]
[1765155392357,7.58649145,131.82,131.78,10.53099159]
[1765155392560,8.38,131.81,131.78,10.53099159]
[1765155392780,15.96566323,131.83,131.79,0.69]
[1765155392978,15.96566323,131.83,131.79,2.94269566]
[1765155393365,15.96566323,131.83,131.8,0.69]
[1765155393563,8.38,131.83,131.8,0.69]
[1765155394581,2.25269566,131.88,131.81,9.83937345]
[1765155394935,8.38,131.86,131.82,2.25269566]
[1765155395060,8.38,131.86,131.82,2.94269566]
[1765155395254,8.38,131.86,131.83,0.69]
[1765155395679,8.38,131.87,131.83,2.94269566]
[1765155396181,8.38,131.87,131.84,8.27495145]
[1765155396582,8.38,131.87,131.85,0.69]
[1765155396583,15.96336058,131.87,131.85,0.69]
[1765155397362,8.38,131.87,131.85,0.69]
[1765155397781,15.96322947,131.87,131.85,0.69]
[1765155398166,8.38,131.87,131.85,0.69]
[1765155402696,15.96328358,131.87,131.85,0.69]
[1765155404192,18.21597924,131.87,131.83,0.69]
[1765155404376,18.21597924,131.87,131.84,0.69]
[1765155406106,2.25269566,131.86,131.82,62.89]
[1765155406285,8.38,131.85,131.82,62.89]
[1765155406604,8.38,131.85,131.83,0.69]
[1765155407297,15.96458244,131.85,131.83,0.69]
[1765155409392,8.36,131.85,131.83,0.69]
[1765155411282,7.58337952,131.87,131.83,8.27544214]
[1765155411483,8.36,131.86,131.83,8.27544214]
[1765155411790,8.36,131.86,131.84,0.67]
[1765155417701,2.25269566,131.85,131.82,62.9]
[1765155418102,37.15618526,131.86,131.83,0.7]
[1765155421622,7.58467072,131.85,131.83,0.7]
[1765155421824,15.94467072,131.85,131.83,0.7]
[1765155422895,7.5833111,131.87,131.83,10.5382086]
[1765155423218,8.36,131.86,131.83,10.5382086]
[1765155423413,8.36,131.86,131.84,0.7]
[1765155423721,8.36,131.86,131.84,8.28493802]
[1765155423897,8.36,131.86,131.85,0.7]
[1765155430921,7.58286265,131.88,131.85,0.7]
[1765155431098,16.308864,131.91,131.86,2.25269566]
[1765155431306,16.308864,131.91,131.87,0.7]
[1765155431307,8.36,131.9,131.87,0.7]
[1765155431702,15.94152767,131.9,131.87,0.7]
[1765155434124,23.89003468,131.91,131.87,8.28313547]
[1765155434308,32.25003468,131.91,131.87,8.28313547]
[1765155434625,32.25003468,131.91,131.88,0.7]
[1765155436939,8.36,131.91,131.88,10.53523715]
[1765155437439,8.36,131.91,131.89,0.7]
[1765155440322,15.94100916,131.91,131.89,0.7]
[1765155442527,18.19370482,131.91,131.87,0.66]
[1765155442726,2.25269566,131.9,131.86,62.2]
[1765155442922,8.36,131.89,131.88,0.66]
[1765155444747,7.58100916,131.91,131.88,0.66]
[1765155444964,8.36,131.9,131.88,0.66]
[1765155445146,7.58053895,131.92,131.88,8.24250085]
[1765155445443,10.61269566,131.91,131.85,64.45269566]
[1765155445632,10.61269566,131.91,131.86,0.66]
[1765155445833,2.25269566,131.9,131.86,0.66]
[1765155447726,7.58207597,131.89,131.86,0.66]
[1765155447928,8.36,131.88,131.86,0.66]
[1765155450839,15.94270947,131.88,131.86,0.66]
[1765155453034,8.36,131.88,131.86,0.66]
[1765155455457,15.94268292,131.88,131.86,0.66]
[1765155456636,8.36,131.88,131.86,0.66]
[1765155473070,15.94269872,131.88,131.84,62.2]
[1765155473270,3.51538205,131.86,131.82,0.68]
[1765155473474,11.87538205,131.85,131.82,0.68]
[1765155474992,7.58495145,131.84,131.82,0.68]
[1765155475270,19.4600037,131.85,131.82,0.68]
[1765155476861,15.94462165,131.85,131.82,0.68]
[1765155477450,19.4600037,131.85,131.82,0.68]
[1765155479974,15.94462165,131.85,131.82,0.68]
[1765155481289,38.42094416,131.85,131.78,28.18424605]
[1765155481491,38.42094416,131.85,131.82,0.66]
[1765155481671,3.51538205,131.83,131.79,0.66]
[1765155481870,3.51538205,131.82,131.79,0.66]
[1765155482077,3.51538205,131.81,131.78,0.66]
[1765155482583,8.36,131.82,131.78,4.17538205]
[1765155482886,8.36,131.82,131.78,0.66]
[1765155483086,8.36,131.82,131.79,0.66]
[1765155484692,11.10141377,131.83,131.79,0.66]
[1765155484889,11.87538205,131.82,131.79,8.24772715]
[1765155485192,8.36,131.82,131.79,8.24772715]
[1765155485397,8.36,131.83,131.8,0.66]
[1765155486006,11.87538205,131.83,131.8,0.66]
[1765155486177,3.51538205,131.82,131.8,0.66]
[1765155486572,3.51538205,131.81,131.78,0.66]
[1765155486780,7.58646219,131.82,131.78,0.66]
[1765155486781,3.51538205,131.79,131.78,0.66]
[1765155488174,11.87538205,131.8,131.78,0.66]
[1765155490604,19.46264539,131.8,131.78,0.66]
[1765155490774,11.87538205,131.8,131.78,0.66]
[1765155491895,8.36,131.8,131.78,0.66]
[1765155492105,11.87538205,131.8,131.78,0.66]
[1765155493477,8.36,131.8,131.78,0.66]
[1765155493802,11.10170178,131.82,131.78,8.24831899]
[1765155493976,19.46170178,131.82,131.79,0.66]
[1765155495103,3.51538205,131.81,131.79,0.66]
[1765155495402,19.46170178,131.82,131.79,0.66]
[1765155496302,3.51538205,131.8,131.79,0.66]
[1765155496678,3.51538205,131.81,131.79,0.66]
[1765155497002,11.10258854,131.81,131.79,0.66]
[1765155497506,19.46167281,131.82,131.79,0.66]
[1765155497678,3.51538205,131.81,131.79,0.66]
[1765155500410,19.46167281,131.82,131.79,0.66]
[1765155500593,11.10167281,131.82,131.79,0.66]
[1765155500897,3.51538205,131.81,131.79,0.66]
[1765155502906,11.1020935,131.81,131.79,0.66]
[1765155505181,3.51538205,131.8,131.75,0.71]
[1765155505495,3.51538205,131.77,131.74,0.81]
[1765155506308,25.98626335,131.77,131.74,8.40057777]
[1765155506912,25.98626335,131.77,131.75,0.71]
[1765155508296,3.51538205,131.77,131.75,0.71]
[1765155509004,31.48097928,131.79,131.75,8.3000395]
[1765155509315,8.36,131.79,131.75,11.81542155]
[1765155509609,8.36,131.79,131.76,0.71]
[1765155509997,7.58766506,131.8,131.76,8.29952732]
[1765155510484,7.58766506,131.8,131.77,0.71]
[1765155511784,35.77107913,131.81,131.77,8.29882913]
[1765155512293,35.77107913,131.81,131.78,0.71]
[1765155512803,34.50817448,131.81,131.78,0.71]
[1765155513405,2.2524774,131.8,131.78,0.71]
[1765155513602,2.2524774,131.79,131.75,0.71]
[1765155513808,10.6124774,131.78,131.75,0.71]
[1765155514010,2.2524774,131.77,131.75,0.71]
[1765155517014,18.20143371,131.78,131.75,0.71]
[1765155517884,2.2524774,131.77,131.74,0.1]
[1765155518086,2.2524774,131.75,131.74,0.1]
[1765155519715,9.84261022,131.75,131.74,0.1]
[1765155522105,9.84261022,131.75,131.74,0.81]
[1765155522840,7.59013282,131.75,131.74,0.81]
[1765155523116,9.84225091,131.76,131.74,0.81]
[1765155523518,8.36,131.75,131.74,0.81]
[1765155523898,8.36,131.75,131.74,0.1]
[1765155524196,18.20261022,131.75,131.74,0.1]
[1765155524506,15.95013282,131.75,131.74,0.1]
[1765155524922,18.20261022,131.75,131.74,0.1]
[1765155526301,27.01255514,131.75,131.74,0.1]
[1765155526506,43.32141914,131.75,131.74,0.1]
[1765155528422,16.308864,131.73,131.72,0.1]
[1765155528813,18.5613414,131.73,131.72,0.1]
[1765155530644,26.1526266,131.73,131.72,0.1]
[1765155531239,34.96257152,131.73,131.69,0.77]
[1765155531550,2.2524774,131.71,131.69,0.1]
[1765155532011,2.2524774,131.71,131.69,0.77]
[1765155532343,8.36,131.7,131.69,0.1]
[1765155532641,15.95301442,131.7,131.69,0.1]
[1765155533209,34.51435582,131.7,131.69,0.1]
[1765155533821,32.26187842,131.7,131.69,0.1]
[1765155538129,32.26187842,131.7,131.69,0.77]
[1765155538515,7.59301442,131.7,131.69,0.77]
[1765155538835,15.97301442,131.7,131.69,0.77]
[1765155542040,7.59266298,131.71,131.69,0.77]
[1765155542217,7.5912852,131.73,131.69,0.77]
[1765155542539,10.6324774,131.72,131.69,0.77]
[1765155542720,10.6324774,131.72,131.69,0.1]
[1765155542920,7.59243793,131.71,131.69,0.1]
[1765155543120,7.59243793,131.71,131.69,0.77]
[1765155545076,8.38,131.7,131.69,0.77]
[1765155546651,15.97301442,131.7,131.69,0.1]
[1765155547451,15.97301442,131.7,131.69,0.77]
[1765155547740,8.38,131.7,131.69,0.77]
[1765155548117,8.38,131.71,131.69,0.77]
[1765155549718,15.97247391,131.71,131.69,0.77]
[1765155549919,7.5912852,131.73,131.69,0.77]
[1765155550137,7.5912852,131.73,131.69,10.61593777]
[1765155550138,15.9712852,131.73,131.69,10.61593777]
[1765155550338,15.9712852,131.73,131.69,8.36346037]
[1765155550544,2.2524774,131.71,131.69,0.1]
[1765155550750,11.06242232,131.72,131.69,0.77]
[1765155551043,8.38,131.7,131.69,0.77]
[1765155551833,16.308864,131.67,131.65,0.1]
[1765155552147,8.38,131.67,131.66,0.67]